fUSD/lending_fUSD_20250226
["ID","MTS","AMOUNT","RATE_DAILY","PERIOD"]
[354616664,1740595932906,-500.0,0.00038904,14]
[354616666,1740595932915,-1084.65,0.00038904,14]
[354616668,1740595932925,-510.04,0.00038904,14]
[354616670,1740595932935,-151.0,0.00038904,14]
[354616672,1740595932944,-1101.48,0.00038904,14]
[354616674,1740595932955,-634.72,0.00038904,14]
[354616676,1740595932967,-204.24472,0.00038904,14]
[354616678,1740595932976,-842.79,0.00038904,14]
[354616680,1740595932985,-861.46,0.00038904,14]
[354616682,1740595932995,-204.24472,0.00038904,14]
[354616684,1740595933006,-500.0,0.00038904,14]
[354616686,1740595933016,-765.4,0.00038904,14]
[354616688,1740595933026,-604.9,0.00038904,14]
[354616690,1740595933035,-1116.67,0.00038904,14]
[354616692,1740595933045,-151.0,0.00038904,14]
[354616694,1740595933054,-500.0,0.00038904,14]
[354616695,1740595933064,-1441.7,0.00038904,14]
[354616697,1740595933075,-754.28,0.00038904,14]
[354616700,1740595933086,-929.23,0.00038904,14]
[354616702,1740595933096,-1403.66,0.00038904,14]
[354616704,1740595933106,-718.11,0.00038904,14]
[354616706,1740595933115,-1217.5,0.00038904,14]
[354616707,1740595933128,-1107.15,0.00038904,14]
[354616709,1740595933141,-1834.12,0.00038904,14]
[354616711,1740595933151,-151.0,0.00038904,14]
[354616714,1740595933162,-902.19,0.00038904,14]
[354616716,1740595933172,-561.55,0.00038904,14]
[354616717,1740595933182,-565.94,0.00038904,14]
[354616719,1740595933193,-1996.52,0.00038904,14]
[354616721,1740595933204,-500.0,0.00038904,14]
[354616723,1740595933214,-563.43,0.00038904,14]
[354616725,1740595933224,-1467.19,0.00038904,14]
[354616727,1740595933234,-1321.18,0.00038904,14]
[354616729,1740595933244,-1902.42,0.00038904,14]
[354616731,1740595933254,-482.24529949,0.00038904,14]
[354616733,1740595933265,-151.0,0.00038904,14]
[354616735,1740595933275,-1140.97,0.00038904,14]
[354616737,1740595933285,-528.46,0.00038904,14]
[354616739,1740595933295,-500.0,0.00038904,14]
[354616741,1740595933305,-651.71,0.00038904,14]
[354616743,1740595933315,-1073.87,0.00038904,14]
[354616745,1740595933325,-1235.9,0.00038904,14]
[354616747,1740595933335,-2562.418004,0.00038904,14]
[354616749,1740595933344,-583.0,0.00038904,14]
[354616751,1740595933355,-642.59,0.00038904,14]
[354616753,1740595933365,-2562.418004,0.00038904,14]
[354616755,1740595933375,-500.0,0.00038904,14]
[354616757,1740595933388,-1162.07,0.00038904,14]
[354616759,1740595933399,-1175.03,0.00038904,14]
[354616761,1740595933409,-500.0,0.00038904,14]
[354616763,1740595933419,-1123.12,0.00038904,14]
[354616765,1740595933430,-1360.38,0.00038904,14]
[354616767,1740595933440,-990.04,0.00038904,14]
[354616769,1740595933450,-758.81,0.00038904,14]
[354616771,1740595933460,-500.0,0.00038904,14]
[354616772,1740595933470,-151.0,0.00038904,14]
[354616773,1740595933480,-1858.11,0.00038904,14]
[354616774,1740595933489,-743.78,0.00038904,14]
[354616775,1740595933499,-836.2,0.00038904,14]
[354616776,1740595933509,-552.16,0.00038904,14]
[354616777,1740595933518,-957.01,0.00038904,14]
[354616778,1740595933528,-1949.61,0.00038904,14]
[354616779,1740595933537,-500.0,0.00038904,14]
[354616780,1740595933547,-1008.01,0.00038904,14]
[354616781,1740595933557,-1466.22,0.00038904,14]
[354616782,1740595933566,-1152.19,0.00038904,14]
[354616783,1740595933576,-2482.2,0.00038904,14]
[354616784,1740595933585,-151.0,0.00038904,14]
[354616786,1740595933594,-1828.52,0.00038904,14]
[354616788,1740595933604,-561.77029416,0.00038904,14]
[354616790,1740595933614,-527.63,0.00038904,14]
[354616792,1740595933624,-873.77,0.00038904,14]
[354616794,1740595933637,-1665.67,0.00038904,14]
[354616796,1740595933647,-500.0,0.00038904,14]
[354616798,1740595933657,-1934.6,0.00038904,14]
[354616800,1740595933667,-786.06,0.00038904,14]
[354616802,1740595933676,-1875.12,0.00038904,14]
[354616804,1740595933686,-1075.72,0.00038904,14]
[354616806,1740595933695,-554.85,0.00038904,14]
[354616808,1740595933705,-956.32,0.00038904,14]
[354616810,1740595933715,-1163.37,0.00038904,14]
[354616812,1740595933724,-500.0,0.00038904,14]
[354616813,1740595933734,-1037.67,0.00038904,14]
[354616816,1740595933744,-2110.11,0.00038904,14]
[354616817,1740595933753,-655.67,0.00038904,14]
[354616820,1740595933763,-519.01,0.00038904,14]
[354616821,1740595933773,-500.0,0.00038904,14]
[354616824,1740595933783,-754.12,0.00038904,14]
[354616825,1740595933792,-1595.01,0.00038904,14]
[354616827,1740595933802,-1351.39,0.00038904,14]
[354616829,1740595933811,-883.23,0.00038904,14]
[354616831,1740595933821,-978.64,0.00038904,14]
[354616833,1740595933831,-544.48,0.00038904,14]
[354616835,1740595933840,-1282.93,0.00038904,14]
[354616837,1740595933850,-1979.65,0.00038904,14]
[354616839,1740595933859,-500.0,0.00038904,14]
[354616841,1740595933869,-500.0,0.00038904,14]
[354616843,1740595933882,-1465.82,0.00038904,14]
[354616845,1740595933892,-500.0,0.00038904,14]
[354616847,1740595933902,-1395.89,0.00038904,14]
[354616849,1740595933912,-854.86,0.00038904,14]
[354616851,1740595933922,-1505.0,0.00038904,14]
[354616854,1740595933932,-924.09,0.00038904,14]
[354616856,1740595933942,-711.08,0.00038904,14]
[354616857,1740595933953,-552.43,0.00038904,14]
[354616860,1740595933965,-895.76,0.00038904,14]
[354616862,1740595933977,-500.0,0.00038904,14]
[354616864,1740595933987,-500.0,0.00038904,14]
[354616866,1740595933997,-932.59,0.00038904,14]
[354616867,1740595934009,-1558.86,0.00038904,14]
[354616869,1740595934019,-912.19,0.00038904,14]
[354616871,1740595934028,-551.46,0.00038904,14]
[354616873,1740595934039,-3271.55,0.00038904,14]
[354616875,1740595934049,-3117.32,0.00038904,14]
[354616877,1740595934058,-500.0,0.00038904,14]
[354616879,1740595934069,-896.05,0.00038904,14]
[354616881,1740595934079,-1469.5,0.00038904,14]
[354616883,1740595934090,-355.2,0.00038904,14]
[354616885,1740595934099,-500.0,0.00038904,14]
[354616887,1740595934108,-500.0,0.00038904,14]
[354616889,1740595934118,-1970.34,0.00038904,14]
[354616891,1740595934130,-1219.67,0.00038904,14]
[354616893,1740595934139,-500.0,0.00038904,14]
[354616895,1740595934149,-500.0,0.00038904,14]
[354616897,1740595934158,-1258.23,0.00038904,14]
[354616899,1740595934168,-1003.98,0.00038904,14]
[354616901,1740595934178,-802.71,0.00038904,14]
[354616903,1740595934188,-1048.22,0.00038904,14]
[354616905,1740595934197,-500.0,0.00038904,14]
[354616907,1740595934207,-12754.69,0.00038904,14]
[354616909,1740595934216,-500.0,0.00038904,14]
[354616911,1740595934225,-760.48,0.00038904,14]
[354616913,1740595934235,-1559.74,0.00038904,14]
[354616915,1740595934245,-1039.17,0.00038904,14]
[354616917,1740595934254,-968.47,0.00038904,14]
[354616919,1740595934263,-975.3,0.00038904,14]
[354616921,1740595934273,-884.61,0.00038904,14]
[354616923,1740595934283,-581.51,0.00038904,14]
[354616925,1740595934293,-677.65,0.00038904,14]
[354616927,1740595934302,-559.35,0.00038904,14]
[354616929,1740595934311,-500.0,0.00038904,14]
[354616931,1740595934322,-1068.0,0.00038904,14]
[354616932,1740595934331,-1096.63,0.00038904,14]
[354616935,1740595934341,-1472.3,0.00038904,14]
[354616937,1740595934351,-882.85,0.00038904,14]
[354616939,1740595934360,-1708.56,0.00038904,14]
[354616941,1740595934370,-505.62,0.00038904,14]
[354616943,1740595934384,-966.9,0.00038904,14]
[354616945,1740595934394,-1141.53,0.00038904,7]
[354616947,1740595934403,-1382.5,0.00038904,14]
[354616949,1740595934413,-811.04,0.00038904,14]
[354616951,1740595934422,-151.0,0.00038904,14]
[354616953,1740595934432,-669.94,0.00038904,14]
[354616955,1740595934441,-691.77,0.00038904,14]
[354616957,1740595934451,-530.0,0.00038904,14]
[354616959,1740595934460,-1910.93,0.00038904,14]
[354616961,1740595934470,-500.0,0.00038904,14]
[354616963,1740595934480,-500.0,0.00038904,14]
[354616965,1740595934489,-874.49,0.00038904,14]
[354616967,1740595934500,-776.22,0.00038904,14]
[354616969,1740595934509,-2493.41,0.00038904,14]
[354616971,1740595934519,-811.0,0.00038904,14]
[354616973,1740595934528,-2143.28,0.00038904,14]
[354616975,1740595934537,-2617.36,0.00038904,14]
[354616977,1740595934546,-1621.78,0.00038904,14]
[354616979,1740595934556,-151.0,0.00038904,14]
[354616981,1740595934564,-499.1926548,0.00038904,14]
[354616983,1740595934574,-421.85844728,0.00038904,14]
[354616985,1740595934583,-2319.53,0.00038904,14]
[354616987,1740595934592,-500.0,0.00038904,14]
[354616989,1740595934601,-500.0,0.00038904,14]
[354616991,1740595934611,-529.04,0.00038904,14]
[354616993,1740595934620,-1163.2,0.00038904,14]
[354616995,1740595934632,-768.45,0.00038904,14]
[354616997,1740595934642,-160.224883,0.00038904,14]
[354616999,1740595934651,-500.0,0.00038904,14]
[354617009,1740595934737,-500.0,0.00038904,14]
[354617011,1740595934747,-500.0,0.00038904,14]
[354617013,1740595934756,-500.0,0.00038904,14]
[354617015,1740595934766,-911.1,0.00038904,14]
[354617017,1740595934775,-1280.98,0.00038904,14]
[354617019,1740595934784,-2143.46,0.00038904,14]
[354617021,1740595934793,-500.0,0.00038904,14]
[354617023,1740595934803,-873.58,0.00038904,14]
[354617025,1740595934812,-1855.75,0.00038904,14]
[354617027,1740595934821,-939.46,0.00038904,14]
[354617029,1740595934831,-500.0,0.00038904,14]
[354617031,1740595934840,-151.0,0.00038904,14]
[354617033,1740595934849,-151.0,0.00038904,14]
[354617034,1740595934858,-500.0,0.00038904,14]
[354617036,1740595934868,-500.0,0.00038904,14]
[354617039,1740595934879,-1902.32,0.00038904,14]
[354617040,1740595934888,-1142.01,0.00038904,14]
[354617042,1740595934898,-938.37,0.00038904,14]
[354617045,1740595934907,-151.0,0.00038904,14]
[354617047,1740595934916,-800.79,0.00038904,14]
[354617049,1740595934926,-512.47,0.00038904,14]
[354617050,1740595934935,-2507.28,0.00038904,2]
[354617052,1740595934944,-325.751933,0.00038904,14]
[354617054,1740595934953,-325.751933,0.00038904,14]
[354617056,1740595934965,-731.9,0.00038904,14]
[354617058,1740595934974,-500.0,0.00038904,14]
[354617060,1740595934983,-1981.71,0.00038904,14]
[354617062,1740595934992,-1276.51,0.00038904,14]
[354617064,1740595935006,-708.24,0.00038904,14]
[354617066,1740595935016,-500.0,0.00038904,14]
[354617068,1740595935026,-2733.74,0.00038904,14]
[354617070,1740595935035,-2252.01,0.00038904,14]
[354617072,1740595935044,-891.14,0.00038904,14]
[354617074,1740595935054,-500.0,0.00038904,14]
[354617076,1740595935063,-552.36,0.00038904,14]
[354617078,1740595935073,-630.12,0.00038904,14]
[354617080,1740595935082,-500.0,0.00038904,14]
[354617082,1740595935092,-642.98,0.00038904,14]
[354617084,1740595935101,-1991.31,0.00038904,14]
[354617086,1740595935111,-1022.27,0.00038904,14]
[354617088,1740595935120,-1294.07,0.00038904,14]
[354617090,1740595935132,-1853.21,0.00038904,14]
[354617092,1740595935142,-630.96,0.00038904,14]
[354617094,1740595935151,-1573.28,0.00038904,14]
[354617096,1740595935161,-151.0,0.00038904,14]
[354617098,1740595935170,-2426.57,0.00038904,14]
[354617100,1740595935180,-2490.78,0.00038904,14]
[354617102,1740595935190,-1150.32,0.00038904,14]
[354617104,1740595935199,-715.02,0.00038904,14]
[354617106,1740595935209,-3484.94,0.00038904,14]
[354617108,1740595935219,-500.0,0.00038904,14]
[354617110,1740595935228,-2771.33,0.00038904,14]
[354617112,1740595935238,-500.0,0.00038904,14]
[354617114,1740595935247,-1596.62,0.00038904,14]
[354617116,1740595935257,-1876.78,0.00038904,14]
[354617118,1740595935267,-1560.4,0.00038904,14]
[354617120,1740595935276,-6192.85,0.00038904,14]
[354617122,1740595935286,-647.32,0.00038904,14]
[354617124,1740595935296,-1726.29,0.00038904,14]
[354617126,1740595935305,-2725.95,0.00038904,14]
[354617128,1740595935315,-1676.26,0.00038904,14]
[354617130,1740595935324,-563.72,0.00038904,14]
[354617132,1740595935333,-944.42,0.00038904,14]
[354617134,1740595935342,-3837.57,0.00038904,14]
[354617136,1740595935352,-157.58951844,0.00038904,14]
[354617137,1740595935361,-154.65141,0.00038904,14]
[354617140,1740595935371,-1361.35,0.00038904,14]
[354617141,1740595935383,-1302.57,0.00038904,14]
[354617143,1740595935393,-688.53,0.00038904,14]
[354617145,1740595935402,-11693.75,0.00038904,14]
[354617147,1740595935413,-154.65141,0.00038904,14]
[354617149,1740595935422,-2812.52,0.00038904,14]
[354617151,1740595935432,-861.86,0.00038904,14]
[354617153,1740595935442,-3063.11,0.00038904,14]
[354617155,1740595935452,-1132.99,0.00038904,14]
[354617157,1740595935461,-2332.02,0.00038904,14]
[354617159,1740595935470,-3032.5,0.00038904,14]
[354617161,1740595935479,-1403.52,0.00038904,14]
[354617163,1740595935489,-2514.92,0.00038904,14]
[354617164,1740595935499,-840.17,0.00038904,14]
[354617165,1740595935508,-3285.15,0.00038904,14]
[354617166,1740595935519,-1217.25,0.00038904,14]
[354617167,1740595935528,-2864.92,0.00038904,14]
[354617168,1740595935537,-829.58,0.00038904,14]
[354617169,1740595935547,-521.32,0.00038904,14]
[354617170,1740595935556,-1548.49,0.00038904,14]
[354617171,1740595935565,-1797.4,0.00038904,14]
[354617172,1740595935575,-3783.79,0.00038904,14]
[354617173,1740595935584,-1141.09,0.00038904,14]
[354617174,1740595935593,-577.91,0.00038904,14]
[354617176,1740595935602,-6297.9,0.00038904,14]
[354617177,1740595935611,-2194.13,0.00038904,14]
[354617179,1740595935621,-2625.14,0.00038904,14]
[354617181,1740595935632,-1289.77,0.00038904,14]
[354617183,1740595935641,-564.43,0.00038904,14]
[354617185,1740595935650,-2622.68,0.00038904,14]
[354617187,1740595935659,-3149.85,0.00038904,14]
[354617189,1740595935668,-806.4,0.00038904,14]
[354617191,1740595935678,-2632.85,0.00038904,14]
[354617193,1740595935687,-2112.2,0.00038904,14]
[354617195,1740595935697,-3833.32,0.00038904,14]
[354617197,1740595935706,-1648.8,0.00038904,14]
[354617199,1740595935715,-5487.93,0.00038904,14]
[354617201,1740595935724,-2311.59,0.00038904,14]
[354617203,1740595935733,-974.58,0.00038904,14]
[354617205,1740595935742,-565.43,0.00038904,14]
[354617207,1740595935751,-1343.0,0.00038904,14]
[354617209,1740595935761,-11841.49,0.00038904,14]
[354617211,1740595935770,-567.13,0.00038904,14]
[354617213,1740595935779,-3413.54,0.00038904,14]
[354617215,1740595935788,-1833.27,0.00038904,14]
[354617217,1740595935797,-995.26,0.00038904,14]
[354617218,1740595935806,-3517.26,0.00038904,14]
[354617220,1740595935815,-1238.69,0.00038904,14]
[354617222,1740595935824,-7439.57,0.00038904,14]
[354617224,1740595935834,-1700.63,0.00038904,14]
[354617226,1740595935843,-2752.94,0.00038904,14]
[354617228,1740595935852,-4507.25,0.00038904,14]
[354617230,1740595935861,-1862.26,0.00038904,14]
[354617232,1740595935870,-1154.79,0.00038904,14]
[354617234,1740595935882,-639.34,0.00038904,14]
[354617236,1740595935893,-1572.85,0.00038904,14]
[354617238,1740595935902,-535.68070775,0.00038904,14]
[354617240,1740595935911,-3421.4,0.00038904,14]
[354617242,1740595935920,-1778.87,0.00038904,14]
[354617244,1740595935929,-1616.96,0.00038904,14]
[354617246,1740595935938,-696.16,0.00038904,14]
[354617248,1740595935947,-9182.73,0.00038904,14]
[354617249,1740595935956,-6709.93,0.00038904,14]
[354617251,1740595935970,-683.41,0.00038904,14]
[354617253,1740595935981,-682.72,0.00038904,14]
[354617255,1740595935990,-151.0,0.00038904,14]
[354617257,1740595936000,-4316.65,0.00038904,14]
[354617259,1740595936013,-682.23,0.00038904,14]
[354617261,1740595936023,-546.58,0.00038904,14]
[354617263,1740595936033,-3317.95,0.00038904,14]
[354617265,1740595936044,-1576.59,0.00038904,14]
[354617267,1740595936055,-604.02,0.00038904,14]
[354617269,1740595936065,-500.0,0.00038904,14]
[354617271,1740595936075,-876.15,0.00038904,14]
[354617273,1740595936086,-1898.38,0.00038904,14]
[354617275,1740595936096,-3418.9,0.00038904,14]
[354617277,1740595936106,-749.16,0.00038904,14]
[354617279,1740595936116,-2938.03,0.00038904,14]
[354617280,1740595936127,-1228.02,0.00038904,14]
[354617282,1740595936140,-2258.95,0.00038904,14]
[354617284,1740595936150,-1052.77,0.00038904,14]
[354617287,1740595936160,-500.0,0.00038904,14]
[354617288,1740595936170,-932.43,0.00038904,14]
[354617290,1740595936179,-1087.18,0.00038904,14]
[354617292,1740595936189,-3770.5,0.00038904,14]
[354617294,1740595936199,-151.0,0.00038904,14]
[354617296,1740595936208,-4443.37,0.00038904,14]
[354617298,1740595936218,-4370.98,0.00038904,14]
[354617300,1740595936228,-841.55,0.00038904,14]
[354617302,1740595936238,-1077.8,0.00038904,14]
[354617304,1740595936247,-1662.55,0.00038904,14]
[354617306,1740595936257,-1684.75,0.00038904,14]
[354617308,1740595936266,-732.3,0.00038904,14]
[354617310,1740595936275,-669.42,0.00038904,14]
[354617312,1740595936286,-2153.43,0.00038904,14]
[354617314,1740595936295,-2455.03,0.00038904,14]
[354617316,1740595936304,-500.0,0.00038904,14]
[354617318,1740595936313,-555.94,0.00038904,14]
[354617320,1740595936323,-8707.22,0.00038904,14]
[354617322,1740595936332,-1962.86,0.00038904,14]
[354617324,1740595936341,-661.77,0.00038904,14]
[354617326,1740595936351,-14121.36,0.00038904,14]
[354617328,1740595936360,-1465.58,0.00038904,14]
[354617330,1740595936370,-3029.66,0.00038904,14]
[354617332,1740595936381,-500.0,0.00038904,14]
[354617334,1740595936391,-3158.55,0.00038904,14]
[354617336,1740595936400,-1124.82,0.00038904,14]
[354617338,1740595936409,-677.06,0.00038904,14]
[354617340,1740595936419,-1234.59,0.00038904,14]
[354617342,1740595936428,-1087.29,0.00038904,14]
[354617344,1740595936438,-1184.83,0.00038904,14]
[354617346,1740595936447,-766.23,0.00038904,14]
[354617348,1740595936457,-1001.3,0.00038904,14]
[354617350,1740595936467,-617.69,0.00038904,14]
[354617352,1740595936476,-1731.67,0.00038904,14]
[354617354,1740595936485,-527.05,0.00038904,14]
[354617356,1740595936495,-3138.97,0.00038904,14]
[354617358,1740595936504,-1244.63,0.00038904,14]
[354617360,1740595936514,-850.11,0.00038904,14]
[354617362,1740595936524,-2099.68,0.00038904,14]
[354617364,1740595936534,-1394.32,0.00038904,14]
[354617366,1740595936544,-3802.94,0.00038904,14]
[354617368,1740595936554,-1086.92,0.00038904,14]
[354617370,1740595936563,-1256.63,0.00038904,14]
[354617372,1740595936572,-1776.24,0.00038904,14]
[354617374,1740595936582,-772.03,0.00038904,14]
[354617376,1740595936591,-500.0,0.00038904,14]
[354617378,1740595936600,-151.0,0.00038904,14]
[354617380,1740595936610,-773.62,0.00038904,14]
[354617382,1740595936619,-666.36,0.00038904,14]
[354617384,1740595936631,-1317.17,0.00038904,14]
[354617387,1740595936645,-500.0,0.00038904,14]
[354617389,1740595936655,-500.0,0.00038904,14]
[354617391,1740595936664,-500.0,0.00038904,14]
[354617393,1740595936674,-2961.3,0.00038904,14]
[354617395,1740595936683,-4383.06,0.00038904,14]
[354617397,1740595936692,-1507.85,0.00038904,14]
[354617399,1740595936702,-1264.32,0.00038904,14]
[354617401,1740595936712,-1388.89,0.00038904,14]
[354617403,1740595936722,-556.93,0.00038904,14]
[354617405,1740595936731,-3155.81,0.00038904,14]
[354617407,1740595936741,-561.98,0.00038904,14]
[354617409,1740595936750,-2270.77,0.00038904,14]
[354617411,1740595936760,-593.99,0.00038904,14]
[354617414,1740595936772,-208.737999,0.00039,120]
[354617416,1740595936782,-15857.02,0.00039002,9]
[354617418,1740595936793,-1251.89,0.00039002,9]
[354617420,1740595936802,-27272.51,0.00039002,9]
[354617422,1740595936811,-1060.0,0.00039011,5]
[354617424,1740595936821,-208.0,0.0003907,2]
[354617426,1740595936831,-1275.0,0.00039124,2]
[354617428,1740595936841,-2028.0,0.00039124,2]
[354617430,1740595936851,-150.0,0.00039124,2]
[354617432,1740595936860,-570.0,0.00039124,2]
[354617434,1740595936869,-1664.0,0.00039124,2]
[354617436,1740595936880,-639.0,0.00039124,2]
[354617438,1740595936890,-784.0,0.00039124,2]
[354617440,1740595936900,-1267.0,0.00039124,2]
[354617442,1740595936909,-909.0,0.00039124,2]
[354617444,1740595936919,-540.0,0.00039124,2]
[354617446,1740595936929,-1425.0,0.00039124,2]
[354617448,1740595936940,-4034.0,0.00039124,2]
[354617450,1740595936950,-1010.0,0.00039124,2]
[354617452,1740595936959,-3922.0,0.00039124,2]
[354617454,1740595936970,-150.0,0.00039124,2]
[354617456,1740595936980,-1111.0,0.00039124,2]
[354617458,1740595936991,-2142.0,0.00039178,14]
[354617460,1740595937005,-1232.0,0.00039178,14]
[354617462,1740595937015,-151.0,0.00039178,14]
[354617464,1740595937025,-151.0,0.00039178,14]
[354617466,1740595937036,-151.0,0.00039178,14]
[354617468,1740595937046,-151.0,0.00039178,14]
[354617470,1740595937057,-672.636069,0.00039178,14]
[354617472,1740595937067,-500.0,0.00039178,14]
[354617474,1740595937077,-1501.590989,0.00039178,14]
[354617476,1740595937087,-676.71,0.00039178,14]
[354617478,1740595937096,-870.39,0.00039178,14]
[354617480,1740595937106,-1090.2,0.00039178,14]
[354617482,1740595937115,-1069.27,0.00039178,14]
[354617484,1740595937124,-814.89,0.00039178,14]
[354617486,1740595937135,-151.0,0.00039178,14]
[354617488,1740595937145,-500.0,0.00039178,14]
[354617490,1740595937155,-500.0,0.00039178,14]
[354617492,1740595937165,-1150.39,0.00039178,14]
[354617494,1740595937175,-500.0,0.00039178,14]
[354617496,1740595937185,-500.0,0.00039178,14]
[354617498,1740595937195,-701.36,0.00039178,14]
[354617500,1740595937205,-841.82,0.00039178,14]
[354617503,1740595937215,-500.0,0.00039178,14]
[354617505,1740595937225,-670.19,0.00039178,14]
[354617507,1740595937235,-151.0,0.00039178,14]
[354617509,1740595937245,-300.0,0.00039178,14]
[354617511,1740595937255,-1844.05,0.00039178,14]
[354617513,1740595937264,-151.0,0.00039178,14]
[354617515,1740595937274,-500.0,0.00039178,14]
[354617517,1740595937284,-747.92,0.00039178,14]
[354617519,1740595937294,-835.83,0.00039178,14]
[354617521,1740595937303,-738.6,0.00039178,14]
[354617523,1740595937313,-1533.87,0.00039178,14]
[354617525,1740595937323,-1414.25,0.00039178,14]
[354617527,1740595937332,-865.08,0.00039178,14]
[354617529,1740595937342,-633.98,0.00039178,14]
[354617531,1740595937352,-600.33,0.00039178,14]
[354617533,1740595937363,-151.204097,0.00039178,14]
[354617535,1740595937372,-500.0,0.00039178,14]
[354617537,1740595937385,-580.36,0.00039178,14]
[354617539,1740595937395,-742.35,0.00039178,14]
[354617541,1740595937405,-732.49,0.00039178,14]
[354617543,1740595937415,-527.1,0.00039178,14]
[354617545,1740595937425,-500.0,0.00039178,14]
[354617547,1740595937435,-935.03,0.00039178,14]
[354617549,1740595937445,-543.41,0.00039178,14]
[354617551,1740595937455,-581.31,0.00039178,14]
[354617553,1740595937464,-689.42,0.00039178,14]
[354617555,1740595937474,-689.49,0.00039178,14]
[354617558,1740595937484,-151.0,0.00039178,14]
[354617560,1740595937494,-571.34,0.00039178,14]
[354617562,1740595937503,-696.87,0.00039178,14]
[354617564,1740595937513,-1290.39,0.00039178,14]
[354617566,1740595937522,-546.44,0.00039178,14]
[354617568,1740595937532,-500.0,0.00039178,14]
[354617570,1740595937541,-594.86,0.00039178,14]
[354617572,1740595937551,-635.18,0.00039178,14]
[354617574,1740595937560,-858.4,0.00039178,14]
[354617576,1740595937570,-617.43,0.00039178,14]
[354617578,1740595937581,-500.0,0.00039178,14]
[354617580,1740595937591,-665.21,0.00039178,14]
[354617582,1740595937601,-500.0,0.00039178,14]
[354617584,1740595937610,-1850.02,0.00039178,14]
[354617586,1740595937620,-1161.63,0.00039178,14]
[354617588,1740595937632,-1036.04,0.00039178,14]
[354617590,1740595937642,-2240.29,0.00039178,14]
[354617592,1740595937652,-500.0,0.00039178,14]
[354617594,1740595937662,-500.0,0.00039178,14]
[354617596,1740595937672,-608.93,0.00039178,14]
[354617598,1740595937682,-2310.8,0.00039178,14]
[354617600,1740595937693,-560.9298644,0.00039178,14]
[354617602,1740595937703,-500.0,0.00039178,14]
[354617604,1740595937714,-1018.81,0.00039178,14]
[354617606,1740595937725,-500.0,0.00039178,14]
[354617608,1740595937735,-871.69,0.00039178,14]
[354617610,1740595937745,-500.0,0.00039178,14]
[354617612,1740595937755,-1006.27,0.00039178,14]
[354617614,1740595937765,-595.91,0.00039178,14]
[354617616,1740595937775,-1116.49,0.00039178,14]
[354617618,1740595937785,-641.45,0.00039178,14]
[354617620,1740595937795,-500.0,0.00039178,14]
[354617622,1740595937804,-772.83,0.00039178,14]
[354617624,1740595937815,-1308.99,0.00039178,14]
[354617626,1740595937824,-935.7,0.00039178,14]
[354617628,1740595937834,-872.15,0.00039178,14]
[354617630,1740595937843,-500.0,0.00039178,14]
[354617632,1740595937854,-644.15337086,0.00039178,14]
[354617634,1740595937864,-649.25,0.00039178,14]
[354617636,1740595937874,-500.0,0.00039178,14]
[354617638,1740595937888,-1082.33,0.00039178,14]
[354617640,1740595937899,-513.39,0.00039178,14]
[354617642,1740595937909,-500.0,0.00039178,14]